[Event "XLV Badalona Open 2019"]
[Site "Badalona"]
[Date "2019.08.02"]
[Round "1.1"]
[White "Munoz, Miguel"]
[Black "Boyer Censore, Giuseppe Enmanuel"]
[Result "1-0"]
[ECO "B20"]
[WhiteElo "2511"]
[BlackElo "2094"]
[Annotator "ChessBase"]
[PlyCount "79"]
[EventDate "2019.08.02"]
[EventType "swiss"]
[EventCountry "ESP"]
[SourceTitle "playchess.com"]
[Source "ChessBase"]
[SourceQuality "1"]
[TimeControl "5400+30"]

1. e4 {[%emt 0:00:00]} c5 {[%emt 0:00:24]} 2. g3 {[%emt 0:00:00]} Nc6 {[%emt 0:00:10]} 3. Bg2 {[%emt 0:00:00]} g6 {[%emt 0:00:08]} 4. Ne2 {[%emt 0:00:00]} Bg7 {[%emt 0:00:13]} 5. c3 {[%emt 0:00:04]} e5 {[%emt 0:00:06]} 6. d3 Nge7 {[%emt 0:00:25]} 7. Be3 {[%emt 0:00:15]} d6 8. O-O {[%emt 0:00:00]} O-O {[%emt 0:00:41]} 9. f4 {[%emt 0:00:14]} Be6 {[%emt 0:00:51]} 10. Nd2 {[%emt 0:00:31]} b6 {[%emt 0:07:39]} 11. f5 gxf5 {[%emt 0:11:56]} 12. exf5 {[%emt 0:00:52]} Nxf5 13. Rxf5 {[%emt 0:00:19]} Bxf5 {[%emt 0:00:47]} 14. Bxc6 {[%emt 0:00:13]} Rc8 15. Bb7 {[%emt 0:01:14]} Rc7 {[%emt 0:02:29]} 16. Bd5 {[%emt 0:00:09]} Bxd3 {[%emt 0:03:17]} 17. Ne4 {[%emt 0:04:14]} Bxe4 {[%emt 0:01:18]} 18. Bxe4 f5 19. Bg2 {[%emt 0:01:23]} Kh8 {[%emt 0:01:29]} 20. Qd2 Qe7 {[%emt 0:02:31]} 21. c4 {[%emt 0:01:09]} Qe6 22. Bd5 {[%emt 0:04:34]} Qg6 {[%emt 0:04:05]} 23. Kh1 {[%emt 0:06:52]} Qh5 {[%emt 0:18:12]} 24. Nc3 {[%emt 0:04:52]} Rd7 {[%emt 0:17:20]} 25. Rf1 {[%emt 0:08:47]} h6 26. Be6 {[%emt 0:01:50]} Rdd8 {[%emt 0:12:41]} 27. Qf2 {[%emt 0:00:34]} f4 {[%emt 0:07:12]} 28. gxf4 {[%emt 0:00:20]} exf4 {[%emt 0:00:21]} 29. Bxf4 {[%emt 0:07:44]} Rde8 {[%emt 0:04:16]} 30. Bd5 {[%emt 0:08:57]} Qh3 {[%emt 0:05:14]} 31. Ne4 Rxf4 {[%emt 0:00:02]} 32. Qxf4 {[%emt 0:00:40]} Rf8 33. Qxf8+ {[%emt 0:00:00]} Bxf8 {[%emt 0:00:32]} 34. Rxf8+ {[%emt 0:03:22]} Kh7 {[%emt 0:00:07]} 35. Rf7+ {[%emt 0:03:56]} Kg6 {[%emt 0:02:10]} 36. Ng3 {[%emt 0:01:07]} Qg4 {[%emt 0:00:36]} 37. Bf3 Qxc4 38. Bh5+ {[%emt 0:01:07]} Kg5 {[%emt 0:00:32]} 39. Rf5+ {[%emt 0:00:39]} Kh4 40. Bd1 1-0

[Event "XLV Badalona Open 2019"]
[Site "Badalona"]
[Date "2019.08.02"]
[Round "1.2"]
[White "Roumegous, Marina"]
[Black "Pena Gomez, Manuel"]
[Result "0-1"]
[ECO "A48"]
[WhiteElo "2093"]
[BlackElo "2500"]
[Annotator "ChessBase"]
[PlyCount "66"]
[EventDate "2019.08.02"]
[EventType "swiss"]
[EventCountry "ESP"]
[SourceTitle "playchess.com"]
[Source "ChessBase"]
[SourceQuality "1"]
[TimeControl "5400+30"]

1. d4 Nf6 2. Nf3 g6 3. c3 Bg7 4. Bf4 O-O 5. Nbd2 d6 6. e4 Nc6 7. d5 e5 8. Be3 Ne7 9. h3 Ne8 10. g3 f5 11. Bg2 Nf6 12. c4 h6 13. Nh2 Nh5 14. Ndf1 f4 15. Bd2 fxg3 16. fxg3 c6 17. Be3 cxd5 18. cxd5 Bd7 19. Qd2 g5 20. Qb4 Be8 21. Bf3 Bg6 22. Rc1 a5 23. Qa4 Rc8 24. Rc4 b5 25. Qxb5 Rb8 26. Qa4 Rxb2 27. Bc1 Rb1 28. Qd1 Qb6 29. Qe2 Be8 30. Bxh5 Bb5 31. Qd2 Bxc4 32. Ne3 Qd4 33. Bf3 Bd3 0-1

[Event "XLV Badalona Open 2019"]
[Site "Badalona"]
[Date "2019.08.02"]
[Round "1.3"]
[White "Moskalenko, Viktor"]
[Black "Asensio Linan, Teodoro"]
[Result "1-0"]
[ECO "A41"]
[WhiteElo "2500"]
[BlackElo "2123"]
[Annotator "ChessBase"]
[PlyCount "42"]
[EventDate "2019.08.02"]
[EventType "swiss"]
[EventCountry "ESP"]
[SourceTitle "playchess.com"]
[Source "ChessBase"]
[SourceQuality "1"]
[TimeControl "5400+30"]

1. d4 {[%emt 0:03:26]} d6 2. e4 {[%emt 0:00:14]} Nf6 {[%emt 0:00:56]} 3. f3 {[%emt 0:01:25]} d5 {[%emt 0:07:58]} 4. Bg5 {[%emt 0:02:04]} c6 {[%emt 0:05:05]} 5. Nc3 {[%emt 0:04:36]} h6 {[%emt 0:05:42]} 6. Bh4 {[%emt 0:05:14]} Qb6 {[%emt 0:07:34]} 7. a3 {[%emt 0:10:01]} a5 {[%emt 0:00:14]} 8. Bxf6 {[%emt 0:01:06]} gxf6 {[%emt 0:00:29]} 9. exd5 {[%emt 0:03:14]} cxd5 {[%emt 0:00:11]} 10. Bb5+ {[%emt 0:03:20]} Bd7 {[%emt 0:09:04]} 11. a4 {[%emt 0:03:27]} Qd6 {[%emt 0:00:59]} 12. Bxd7+ {[%emt 0:00:16]} Qxd7 {[%emt 0:00:30]} 13. Nge2 {[%emt 0:02:27]} Nc6 {[%emt 0:07:39]} 14. Nb5 {[%emt 0:01:08]} Rc8 {[%emt 0:01:26]} 15. c3 {[%emt 0:01:25]} h5 {[%emt 0:06:02]} 16. Qd3 {[%emt 0:17:24]} h4 {[%emt 0:01:16]} 17. Kf2 {[%emt 0:04:00]} Bh6 {[%emt 0:01:27]} 18. Rae1 {[%emt 0:04:02]} Kf8 {[%emt 0:03:57]} 19. g4 {[%emt 0:04:35]} e5 {[%emt 0:08:11]} 20. Rd1 e4 {[%emt 0:00:03]} 21. fxe4 {[%emt 0:03:30]} Re8 1-0

[Event "XLV Badalona Open 2019"]
[Site "Badalona"]
[Date "2019.08.02"]
[Round "1.4"]
[White "Chirivi C, Angie Lizeth"]
[Black "Oliva Castaneda, Kevel"]
[Result "0-1"]
[ECO "B53"]
[WhiteElo "2069"]
[BlackElo "2467"]
[Annotator "ChessBase"]
[PlyCount "54"]
[EventDate "2019.08.02"]
[EventType "swiss"]
[EventCountry "ESP"]
[SourceTitle "playchess.com"]
[Source "ChessBase"]
[SourceQuality "1"]
[TimeControl "5400+30"]

1. e4 c5 {[%emt 0:00:00]} 2. Nf3 {[%emt 0:02:08]} d6 {[%emt 0:00:00]} 3. d4 {[%emt 0:01:46]} cxd4 {[%emt 0:03:07]} 4. Qxd4 {[%emt 0:01:28]} Nf6 {[%emt 0:02:12]} 5. Nc3 {[%emt 0:04:53]} e5 {[%emt 0:04:14]} 6. Bb5+ {[%emt 0:00:30]} Nbd7 {[%emt 0:00:30]} 7. Qd3 {[%emt 0:00:30]} h6 {[%emt 0:00:30]} 8. Be3 {[%emt 0:00:30]} a6 {[%emt 0:00:30]} 9. Bxd7+ {[%emt 0:00:30]} Bxd7 {[%emt 0:00:30]} 10. O-O-O {[%emt 0:00:30]} Rc8 {[%emt 0:00:30]} 11. Nh4 {[%emt 0:00:30]} Qa5 {[%emt 0:00:30]} 12. Nf5 {[%emt 0:00:30]} Rxc3 {[%emt 0:00:30]} 13. bxc3 {[%emt 0:00:30]} d5 {[%emt 0:00:30]} 14. exd5 {[%emt 0:00:30]} e4 {[%emt 0:00:30]} 15. Qd4 {[%emt 0:00:30]} Ba3+ {[%emt 0:00:30]} 16. Kd2 {[%emt 0:00:30]} Bxf5 {[%emt 0:00:30]} 17. Qe5+ {[%emt 0:00:30]} Be7 {[%emt 0:00:30]} 18. Qxf5 {[%emt 0:00:30]} O-O {[%emt 0:00:30]} 19. Bd4 {[%emt 0:00:30]} Nxd5 {[%emt 0:00:30]} 20. h4 {[%emt 0:00:30]} Rd8 {[%emt 0:00:30]} 21. Ke1 {[%emt 0:00:30]} Qxa2 {[%emt 0:00:30]} 22. Rh3 {[%emt 0:00:30]} Qxc2 {[%emt 0:00:30]} 23. Rg3 {[%emt 0:00:30]} Nf6 {[%emt 0:00:30]} 24. Rd2 {[%emt 0:00:30]} Qb3 {[%emt 0:00:30]} 25. Bxf6 {[%emt 0:00:30]} Qb1+ {[%emt 0:00:30]} 26. Ke2 {[%emt 0:00:30]} Rxd2+ {[%emt 0:00:30]} 27. Kxd2 {[%emt 0:00:30]} e3+ {[%emt 0:00:30]} 0-1

[Event "XLV Badalona Open 2019"]
[Site "Badalona"]
[Date "2019.08.02"]
[Round "1.6"]
[White "Sanchez Lopez, Juan Manuel"]
[Black "Sreeshwan Maralakshikari"]
[Result "0-1"]
[ECO "B10"]
[WhiteElo "2068"]
[BlackElo "2461"]
[Annotator "ChessBase"]
[PlyCount "76"]
[EventDate "2019.08.02"]
[EventType "swiss"]
[EventCountry "ESP"]
[SourceTitle "playchess.com"]
[Source "ChessBase"]
[SourceQuality "1"]
[TimeControl "5400+30"]

1. c4 c6 {[%emt 0:00:00]} 2. e4 {[%emt 0:00:44]} d5 3. cxd5 {[%emt 0:00:04]} cxd5 {[%emt 0:00:00]} 4. exd5 {[%emt 0:00:10]} Nf6 {[%emt 0:00:00]} 5. Nc3 {[%emt 0:00:12]} Nxd5 {[%emt 0:00:00]} 6. Bc4 {[%emt 0:00:25]} Nb6 {[%emt 0:00:00]} 7. Be2 {[%emt 0:00:17]} Nc6 {[%emt 0:00:00]} 8. Nf3 {[%emt 0:00:50]} Bg4 {[%emt 0:00:18]} 9. d4 {[%emt 0:00:36]} e6 {[%emt 0:00:01]} 10. O-O {[%emt 0:00:30]} Be7 {[%emt 0:00:16]} 11. Re1 {[%emt 0:07:43]} O-O {[%emt 0:03:16]} 12. Bf4 {[%emt 0:00:47]} Bf6 {[%emt 0:02:32]} 13. Ne5 {[%emt 0:12:17]} Bxe2 {[%emt 0:02:16]} 14. Nxe2 {[%emt 0:09:03]} Rc8 {[%emt 0:03:26]} 15. a4 {[%emt 0:01:09]} Qd5 {[%emt 0:01:14]} 16. a5 {[%emt 0:03:29]} Nc4 {[%emt 0:09:44]} 17. a6 {[%emt 0:20:24]} bxa6 {[%emt 0:01:41]} 18. Rxa6 {[%emt 0:06:29]} Nxb2 {[%emt 0:06:05]} 19. Qd2 {[%emt 0:07:18]} Bxe5 {[%emt 0:05:42]} 20. Qxb2 {[%emt 0:00:29]} Bxf4 {[%emt 0:00:05]} 21. Nxf4 {[%emt 0:05:02]} Qc4 {[%emt 0:01:02]} 22. Ra3 {[%emt 0:02:09]} Nxd4 {[%emt 0:01:34]} 23. Rg3 {[%emt 0:02:23]} Nf5 {[%emt 0:00:04]} 24. Nh5 {[%emt 0:05:49]} f6 {[%emt 0:00:30]} 25. Ra3 {[%emt 0:02:26]} Rc7 {[%emt 0:03:55]} 26. h3 {[%emt 0:01:32]} Nd4 {[%emt 0:00:36]} 27. Rg3 {[%emt 0:00:42]} e5 {[%emt 0:01:00]} 28. Qd2 {[%emt 0:04:39]} g6 {[%emt 0:07:00]} 29. Kh2 {[%emt 0:04:28]} Qd5 {[%emt 0:02:25]} 30. Rd1 Rd7 {[%emt 0:00:04]} 31. Qh6 {[%emt 0:01:41]} Qf7 {[%emt 0:02:43]} 32. f4 {[%emt 0:01:07]} Nf5 {[%emt 0:00:06]} 33. Rxd7 {[%emt 0:00:42]} Nxh6 {[%emt 0:00:04]} 34. Rxf7 Kxf7 {[%emt 0:00:05]} 35. Ra3 {[%emt 0:01:19]} gxh5 {[%emt 0:00:04]} 36. Rxa7+ {[%emt 0:00:23]} Kg6 {[%emt 0:00:05]} 37. fxe5 fxe5 {[%emt 0:00:05]} 38. Re7 {[%emt 0:00:38]} Nf7 0-1

[Event "XLV Badalona Open 2019"]
[Site "Badalona"]
[Date "2019.08.02"]
[Round "1.9"]
[White "Sanchez Coves, Juan Josep"]
[Black "Gisbert Mir, Alfonso"]
[Result "0-1"]
[ECO "B24"]
[WhiteElo "1572"]
[BlackElo "1936"]
[Annotator "NA"]
[PlyCount "67"]
[EventDate "2019.08.02"]
[EventType "swiss"]
[EventCountry "ESP"]
[SourceTitle "playchess.com"]
[Source "ChessBase"]
[SourceQuality "1"]
[TimeControl "5400+30"]

1. e4 {[%emt 0:00:13]} c5 {[%emt 0:00:00]} 2. Nc3 {[%emt 0:01:26]} Nc6 {[%emt 0:01:48]} 3. Bb5 {[%emt 0:00:16]} d6 {[%emt 0:00:30]} 4. Bxc6+ {[%emt 0:00:30]} bxc6 {[%emt 0:00:29]} 5. d3 {[%emt 0:04:37]} Nf6 {[%emt 0:00:36]} 6. h3 {[%emt 0:01:08]} g6 {[%emt 0:00:24]} 7. Nf3 {[%emt 0:00:30]} Bg7 {[%emt 0:01:35]} 8. Be3 {[%emt 0:05:56]} Rb8 {[%emt 0:02:18]} 9. Qc1 {[%emt 0:00:25]} O-O {[%emt 0:03:50]} 10. O-O {[%emt 0:03:19]} Bd7 {[%emt 0:01:44]} 11. e5 {[%emt 0:09:28]} Nd5 {[%emt 0:07:13]} 12. Bh6 {[%emt 0:03:22]} Nxc3 {[%emt 0:07:28]} 13. bxc3 f6 {[%emt 0:00:27]} 14. Bxg7 {[%emt 0:05:17]} Kxg7 {[%emt 0:00:15]} 15. exd6 {[%emt 0:03:00]} exd6 {[%emt 0:02:41]} 16. Qf4 {[%emt 0:02:09]} Be6 {[%emt 0:00:30]} 17. Rfe1 {[%emt 0:06:44]} Qd7 {[%emt 0:02:54]} 18. Qg3 {[%emt 0:01:11]} Rb2 {[%emt 0:11:34]} 19. Re2 {[%emt 0:02:07]} Rfb8 {[%emt 0:02:30]} 20. Rae1 {[%emt 0:06:42]} Rb1 {[%emt 0:06:55]} 21. c4 {[%emt 0:03:00]} Rxe1+ {[%emt 0:05:15]} 22. Nxe1 Rb1 {[%emt 0:01:10]} 23. Qe3 {[%emt 0:04:50]} Bf7 {[%emt 0:04:00]} 24. c3 {[%emt 0:06:07]} Qb7 {[%emt 0:02:40]} 25. Kh2 {[%emt 0:02:37]} Qb8 {[%emt 0:03:44]} 26. Qg3 {[%emt 0:17:42]} Rc1 {[%emt 0:03:36]} 27. d4 {[%emt 0:01:01]} cxd4 {[%emt 0:06:01]} 28. cxd4 {[%emt 0:04:27]} Bxc4 {[%emt 0:00:13]} 29. Re7+ {[%emt 0:01:02]} Bf7 {[%emt 0:03:07]} 30. Nd3 Rc3 {[%emt 0:00:24]} 31. Rxf7+ {[%emt 0:01:28]} Kxf7 {[%emt 0:00:30]} 32. Ne5+ {[%emt 0:00:13]} dxe5 {[%emt 0:00:41]} 33. Qxc3 {[%emt 0:00:18]} exd4+ {[%emt 0:00:18]} 34. Qg3 {[%emt 0:00:30]} 0-1

[Event "XLV Badalona Open 2019"]
[Site "Badalona"]
[Date "2019.08.03"]
[Round "2.1"]
[White "Bru Rullo, Llatzer"]
[Black "Munoz, Miguel"]
[Result "1/2-1/2"]
[ECO "E70"]
[WhiteElo "2311"]
[BlackElo "2511"]
[Annotator "ChessBase"]
[PlyCount "87"]
[EventDate "2019.08.02"]
[EventType "swiss"]
[EventCountry "ESP"]
[SourceTitle "playchess.com"]
[Source "ChessBase"]
[SourceQuality "1"]
[TimeControl "5400+30"]

1. d4 {[%emt 0:00:08]} Nf6 {[%emt 0:00:23]} 2. c4 {[%emt 0:00:06]} g6 {[%emt 0:00:20]} 3. Nc3 Bg7 {[%emt 0:00:11]} 4. e4 {[%emt 0:00:23]} O-O {[%emt 0:00:07]} 5. Nf3 {[%emt 0:00:17]} c5 6. d5 {[%emt 0:00:52]} d6 {[%emt 0:00:25]} 7. h3 {[%emt 0:00:13]} e6 {[%emt 0:00:11]} 8. Bd3 {[%emt 0:01:21]} exd5 {[%emt 0:00:16]} 9. exd5 Re8+ {[%emt 0:09:00]} 10. Be3 {[%emt 0:01:05]} Bh6 11. O-O {[%emt 0:00:17]} Bxe3 {[%emt 0:00:11]} 12. fxe3 {[%emt 0:00:07]} Qe7 {[%emt 0:00:00]} 13. e4 {[%emt 0:01:12]} Nbd7 {[%emt 0:02:08]} 14. Qd2 {[%emt 0:14:19]} a6 {[%emt 0:01:13]} 15. Rf2 {[%emt 0:12:05]} Nh5 {[%emt 0:01:09]} 16. g4 {[%emt 0:05:29]} Ng7 {[%emt 0:04:02]} 17. Qh6 {[%emt 0:29:51]} f6 {[%emt 0:03:28]} 18. Raf1 {[%emt 0:05:49]} Rf8 19. a4 {[%emt 0:01:45]} Ne5 {[%emt 0:04:01]} 20. Nxe5 {[%emt 0:01:07]} Qxe5 21. Qf4 Qxf4 {[%emt 0:05:17]} 22. Rxf4 {[%emt 0:00:32]} Ne8 {[%emt 0:07:29]} 23. Kg2 {[%emt 0:02:00]} Bd7 {[%emt 0:01:15]} 24. R4f2 {[%emt 0:04:02]} b6 {[%emt 0:00:25]} 25. a5 {[%emt 0:02:15]} Rb8 26. axb6 Rxb6 {[%emt 0:04:05]} 27. e5 {[%emt 0:02:32]} dxe5 {[%emt 0:00:08]} 28. Ne4 {[%emt 0:00:02]} Bc8 {[%emt 0:00:01]} 29. Nxc5 {[%emt 0:00:18]} f5 {[%emt 0:00:00]} 30. gxf5 {[%emt 0:02:11]} gxf5 31. Bxf5 {[%emt 0:01:49]} Rxf5 {[%emt 0:02:07]} 32. Rxf5 {[%emt 0:00:03]} Bxf5 {[%emt 0:00:09]} 33. Rxf5 Rg6+ {[%emt 0:00:00]} 34. Kf2 {[%emt 0:01:56]} Nd6 {[%emt 0:00:03]} 35. Rxe5 {[%emt 0:00:33]} Nxc4 {[%emt 0:00:49]} 36. Re6 {[%emt 0:07:46]} Rg5 {[%emt 0:00:39]} 37. b3 {[%emt 0:02:36]} Rxd5 {[%emt 0:10:26]} 38. Nxa6 {[%emt 0:01:32]} Ne5 {[%emt 0:00:30]} 39. Nc7 {[%emt 0:00:44]} Rc5 {[%emt 0:01:11]} 40. Na6 {[%emt 0:01:54]} Rb5 {[%emt 0:00:22]} 41. b4 Nd3+ {[%emt 0:00:07]} 42. Ke3 {[%emt 0:00:58]} Nxb4 43. Nxb4 {[%emt 0:00:13]} Rxb4 {[%emt 0:00:35]} 44. Kf3 1/2-1/2

[Event "XLV Badalona Open 2019"]
[Site "Badalona"]
[Date "2019.08.03"]
[Round "2.2"]
[White "Pena Gomez, Manuel"]
[Black "Escobar Medina, Andres F"]
[Result "1-0"]
[ECO "A56"]
[WhiteElo "2500"]
[BlackElo "2296"]
[Annotator "ChessBase"]
[PlyCount "61"]
[EventDate "2019.08.02"]
[EventType "swiss"]
[EventCountry "ESP"]
[SourceTitle "playchess.com"]
[Source "ChessBase"]
[SourceQuality "1"]
[TimeControl "5400+30"]

1. d4 {[%emt 0:00:00]} Nf6 {[%emt 0:13:28]} 2. c4 {[%emt 0:00:00]} c5 {[%emt 0:02:31]} 3. Nf3 {[%emt 0:02:20]} g6 {[%emt 0:01:10]} 4. Nc3 {[%emt 0:04:00]} Bg7 {[%emt 0:00:15]} 5. d5 {[%emt 0:00:14]} O-O 6. e4 d6 {[%emt 0:00:38]} 7. h3 {[%emt 0:00:35]} e6 {[%emt 0:00:38]} 8. Bd3 {[%emt 0:00:07]} exd5 {[%emt 0:00:16]} 9. cxd5 {[%emt 0:00:32]} Re8 {[%emt 0:08:42]} 10. O-O {[%emt 0:10:29]} b6 {[%emt 0:04:49]} 11. Rb1 {[%emt 0:06:23]} Ba6 {[%emt 0:14:33]} 12. Bf4 {[%emt 0:00:20]} c4 {[%emt 0:00:07]} 13. Bc2 {[%emt 0:01:09]} b5 {[%emt 0:00:27]} 14. a3 {[%emt 0:05:33]} Qb6 15. b3 cxb3 {[%emt 0:03:29]} 16. Rxb3 {[%emt 0:00:45]} Nbd7 {[%emt 0:04:26]} 17. Qb1 {[%emt 0:12:14]} Rab8 {[%emt 0:05:10]} 18. Rb4 {[%emt 0:00:21]} Rec8 {[%emt 0:07:47]} 19. Ne2 Nh5 {[%emt 0:00:21]} 20. Be3 {[%emt 0:00:58]} Qa5 21. Ned4 {[%emt 0:00:28]} Qxa3 {[%emt 0:03:56]} 22. Nc6 Nc5 {[%emt 0:00:24]} 23. Nxb8 {[%emt 0:02:54]} Rxb8 24. Bxc5 {[%emt 0:03:57]} dxc5 {[%emt 0:00:35]} 25. Ra4 {[%emt 0:00:00]} bxa4 {[%emt 0:00:50]} 26. Qxb8+ {[%emt 0:00:00]} Bf8 27. d6 {[%emt 0:00:00]} Nf6 {[%emt 0:01:12]} 28. Rd1 {[%emt 0:00:06]} Nd7 {[%emt 0:01:23]} 29. Qxa7 {[%emt 0:01:10]} Qc3 {[%emt 0:03:23]} 30. Bxa4 {[%emt 0:01:03]} Be2 31. Qxd7 1-0

[Event "XLV Badalona Open 2019"]
[Site "Badalona"]
[Date "2019.08.03"]
[Round "2.3"]
[White "Oliva Castaneda, Kevel"]
[Black "Cruz, Filemon"]
[Result "1-0"]
[ECO "C50"]
[WhiteElo "2467"]
[BlackElo "2304"]
[Annotator "ChessBase"]
[PlyCount "65"]
[EventDate "2019.08.02"]
[EventType "swiss"]
[EventCountry "ESP"]
[SourceTitle "playchess.com"]
[Source "ChessBase"]
[SourceQuality "1"]
[TimeControl "5400+30"]

1. e4 {[%emt 0:00:16]} e5 {[%emt 0:02:40]} 2. Nf3 {[%emt 0:00:03]} Nc6 {[%emt 0:00:07]} 3. Bc4 {[%emt 0:00:06]} Bc5 {[%emt 0:00:12]} 4. O-O {[%emt 0:00:05]} Nf6 {[%emt 0:00:18]} 5. d3 {[%emt 0:00:06]} d6 {[%emt 0:02:07]} 6. c3 {[%emt 0:01:18]} Bb6 {[%emt 0:00:33]} 7. a4 {[%emt 0:00:24]} a6 {[%emt 0:01:21]} 8. Nbd2 {[%emt 0:00:11]} O-O {[%emt 0:00:34]} 9. h3 {[%emt 0:00:29]} Ne7 {[%emt 0:00:20]} 10. Re1 {[%emt 0:03:53]} Ng6 {[%emt 0:00:22]} 11. a5 {[%emt 0:03:05]} Ba7 12. d4 exd4 {[%emt 0:08:13]} 13. cxd4 {[%emt 0:00:36]} d5 {[%emt 0:00:00]} 14. exd5 {[%emt 0:02:52]} Nxd5 {[%emt 0:04:06]} 15. Qb3 {[%emt 0:00:09]} c6 {[%emt 0:00:25]} 16. Ne4 {[%emt 0:04:52]} h6 {[%emt 0:02:01]} 17. Bd2 {[%emt 0:01:29]} Rb8 {[%emt 0:06:25]} 18. Rad1 {[%emt 0:01:05]} Be6 19. Nc5 Bxc5 {[%emt 0:00:39]} 20. dxc5 {[%emt 0:00:34]} Qf6 {[%emt 0:05:22]} 21. Re4 {[%emt 0:21:51]} Ndf4 {[%emt 0:09:25]} 22. Bxf4 {[%emt 0:01:41]} Nxf4 {[%emt 0:17:18]} 23. Rd6 {[%emt 0:10:48]} Rfd8 {[%emt 0:06:07]} 24. Qe3 {[%emt 0:00:16]} Rxd6 {[%emt 0:00:44]} 25. cxd6 {[%emt 0:01:27]} Nd5 {[%emt 0:00:10]} 26. Bxd5 {[%emt 0:00:20]} cxd5 {[%emt 0:01:05]} 27. Rb4 {[%emt 0:01:51]} Rd8 {[%emt 0:03:14]} 28. Rb6 {[%emt 0:12:53]} Bd7 {[%emt 0:02:19]} 29. Ne5 {[%emt 0:00:17]} Bc6 {[%emt 0:01:36]} 30. d7 {[%emt 0:12:05]} Kf8 {[%emt 0:07:43]} 31. b4 {[%emt 0:01:00]} Qd6 32. b5 {[%emt 0:00:03]} axb5 {[%emt 0:01:38]} 33. a6 1-0

[Event "XLV Badalona Open 2019"]
[Site "Badalona"]
[Date "2019.08.03"]
[Round "2.5"]
[White "Sreeshwan Maralakshikari"]
[Black "Della Morte, Pablo"]
[Result "0-1"]
[ECO "E43"]
[WhiteElo "2461"]
[BlackElo "2289"]
[Annotator "ChessBase"]
[PlyCount "80"]
[EventDate "2019.08.02"]
[EventType "swiss"]
[EventCountry "ESP"]
[SourceTitle "playchess.com"]
[Source "ChessBase"]
[SourceQuality "1"]
[TimeControl "5400+30"]

1. d4 {[%emt 0:00:00]} Nf6 {[%emt 0:00:03]} 2. c4 {[%emt 0:00:02]} e6 {[%emt 0:00:05]} 3. Nc3 {[%emt 0:00:04]} Bb4 {[%emt 0:00:39]} 4. e3 {[%emt 0:00:06]} b6 {[%emt 0:00:29]} 5. Bd3 Bb7 {[%emt 0:00:06]} 6. Nf3 {[%emt 0:00:33]} O-O {[%emt 0:01:00]} 7. O-O {[%emt 0:09:07]} Re8 {[%emt 0:00:21]} 8. Bd2 d6 9. a3 {[%emt 0:02:37]} Bxc3 {[%emt 0:00:38]} 10. Bxc3 {[%emt 0:04:10]} Nbd7 {[%emt 0:00:45]} 11. Nd2 {[%emt 0:00:54]} e5 {[%emt 0:01:48]} 12. d5 {[%emt 0:04:41]} b5 {[%emt 0:04:21]} 13. e4 {[%emt 0:00:04]} Nc5 {[%emt 0:01:51]} 14. Qe2 bxc4 {[%emt 0:00:54]} 15. Nxc4 {[%emt 0:14:26]} Nxd3 {[%emt 0:00:30]} 16. Qxd3 {[%emt 0:00:07]} Ba6 {[%emt 0:08:24]} 17. Rfc1 {[%emt 0:44:19]} c6 {[%emt 0:19:46]} 18. Bb4 {[%emt 0:00:03]} cxd5 {[%emt 0:07:09]} 19. exd5 {[%emt 0:00:35]} Qd7 {[%emt 0:12:13]} 20. b3 {[%emt 0:00:23]} Rac8 {[%emt 0:09:01]} 21. Rc3 {[%emt 0:04:35]} Qg4 {[%emt 0:03:59]} 22. Bxd6 {[%emt 0:05:40]} Rcd8 {[%emt 0:02:48]} 23. Qc2 {[%emt 0:00:44]} Nxd5 {[%emt 0:04:15]} 24. Rg3 {[%emt 0:00:26]} Qe6 {[%emt 0:00:00]} 25. Bc5 {[%emt 0:00:30]} Nf4 {[%emt 0:00:35]} 26. Re1 {[%emt 0:00:33]} Bxc4 {[%emt 0:00:30]} 27. bxc4 {[%emt 0:00:30]} Rc8 {[%emt 0:01:05]} 28. Bxa7 {[%emt 0:02:01]} Rxc4 {[%emt 0:00:30]} 29. Qb2 {[%emt 0:00:30]} h5 {[%emt 0:00:22]} 30. Rge3 {[%emt 0:03:03]} Qc6 {[%emt 0:01:07]} 31. Rf3 {[%emt 0:00:30]} Nxg2 {[%emt 0:01:32]} 32. Kxg2 {[%emt 0:01:12]} Rg4+ {[%emt 0:00:00]} 33. Kf1 Qxf3 {[%emt 0:00:47]} 34. Qb5 {[%emt 0:00:46]} Re6 {[%emt 0:00:30]} 35. Re3 {[%emt 0:00:26]} Qd1+ {[%emt 0:00:18]} 36. Re1 {[%emt 0:00:03]} Rg1+ {[%emt 0:00:14]} 37. Kxg1 {[%emt 0:00:30]} Qxe1+ {[%emt 0:00:30]} 38. Kg2 {[%emt 0:00:00]} Rg6+ {[%emt 0:00:00]} 39. Kf3 {[%emt 0:00:00]} Rg4 {[%emt 0:02:47]} 40. Qe8+ {[%emt 0:00:20]} Kh7 {[%emt 0:00:30]} 0-1